bitfinex/quotes_BTCUSD_20250320
["timestamp","ask_amount","ask_price","bid_price","bid_amount"]
[1742495463836,0.0003382,84081.0,84080.0,2.69031688]
[1742495464270,0.0003382,84081.0,84080.0,2.68831688]
[1742495464438,0.0003382,84081.0,84080.0,2.54237603]
[1742495464782,0.0003382,84081.0,84080.0,2.69131688]
[1742495465200,0.0003382,84081.0,84080.0,2.68831688]
[1742495465529,0.0003382,84081.0,84080.0,2.69131688]
[1742495466394,0.0003382,84081.0,84080.0,2.68731688]
[1742495466609,0.0003382,84081.0,84080.0,2.30615588]
[1742495466818,0.2500962,84081.0,84080.0,2.44055588]
[1742495467223,0.25269601,84081.0,84080.0,1.506]
[1742495467603,0.55269601,84081.0,84080.0,0.006]
[1742495467803,0.55269601,84081.0,84080.0,0.003]
[1742495468000,0.55269601,84081.0,84080.0,0.005]
[1742495468434,0.55269601,84081.0,84080.0,0.002]
[1742495468631,0.249797,84068.0,84067.0,1.5]
[1742495468828,0.249803,84066.0,84065.0,0.0001691]
[1742495469027,0.549803,84066.0,84065.0,0.0001691]
[1742495469371,0.57105374,84066.0,84065.0,0.0001691]
[1742495470205,0.58271401,84066.0,84065.0,0.0001691]
[1742495470392,0.56406361,84066.0,84065.0,0.0001691]
[1742495470693,0.56806361,84066.0,84065.0,0.0001691]
[1742495471322,0.56606361,84066.0,84065.0,0.0001691]
[1742495471521,0.56506361,84066.0,84065.0,0.0001691]
[1742495471717,0.56606361,84066.0,84065.0,0.0001691]
[1742495472144,0.56506361,84066.0,84065.0,0.0001691]
[1742495472356,0.56606361,84066.0,84065.0,0.0001691]
[1742495472562,0.31626061,84066.0,84065.0,0.0001691]
[1742495472768,0.32815561,84066.0,84065.0,0.0001691]
[1742495472966,0.56506361,84066.0,84065.0,0.0001691]
[1742495473376,0.56606361,84066.0,84065.0,0.0001691]
[1742495473579,0.56406361,84066.0,84065.0,0.0001691]
[1742495473793,0.56406361,84066.0,84065.0,1.5001691]
[1742495474796,0.26406361,84066.0,84065.0,1.5011691]
[1742495476328,0.01426061,84066.0,84065.0,1.87319598]
[1742495476547,0.00260034,84066.0,84065.0,1.87319598]
[1742495476910,0.00260034,84066.0,84065.0,1.63528498]
[1742495477114,0.24050834,84066.0,84065.0,1.63528498]
[1742495478030,0.24050834,84066.0,84065.0,1.87319598]
[1742495478031,0.00260034,84066.0,84065.0,1.87319598]
[1742495478233,0.00260034,84066.0,84065.0,1.88509098]
[1742495478699,0.03053485,84067.0,84066.0,0.26434385]
[1742495478900,0.26843985,84067.0,84065.0,1.5011691]
[1742495479053,0.249803,84066.0,84065.0,1.5011691]
[1742495479250,0.627303,84066.0,84065.0,0.0011691]
[1742495479458,0.62983311,84066.0,84065.0,0.0011691]
[1742495479660,0.62983311,84066.0,84065.0,1e-07]
[1742495479857,0.549811,84063.0,84062.0,0.0001694]
[1742495480262,0.55233955,84063.0,84062.0,0.0001694]
[1742495480682,0.56126166,84063.0,84062.0,0.0001694]
[1742495481059,0.55233955,84063.0,84062.0,0.0001694]
[1742495481507,0.55733955,84063.0,84062.0,0.0001694]
[1742495482204,0.56233955,84063.0,84062.0,0.0001694]
[1742495483876,0.549814,84062.0,84061.0,0.0008254]
[1742495484455,0.55234255,84062.0,84061.0,0.0008254]
[1742495485045,0.55734255,84062.0,84061.0,0.0008254]
[1742495485415,0.56234255,84062.0,84061.0,0.0008254]
[1742495486441,0.55234255,84062.0,84061.0,0.0008254]
[1742495486681,0.55734255,84062.0,84061.0,0.0008254]
[1742495486860,0.56234255,84062.0,84061.0,0.0008254]
[1742495490937,0.01252855,84062.0,84061.0,0.01536625]
[1742495491143,0.01252855,84062.0,84061.0,0.38475928]
[1742495491356,0.01,84062.0,84061.0,1.88475928]
[1742495491554,0.01,84062.0,84061.0,1.96635928]
[1742495491751,0.005,84062.0,84061.0,1.96635928]
[1742495492148,0.005,84062.0,84061.0,1.87303238]
[1742495492149,0.008,84062.0,84061.0,1.87303238]
[1742495492350,0.01052855,84062.0,84061.0,1.87303238]
[1742495492587,0.01052855,84062.0,84061.0,1.63511038]
[1742495492772,0.00552855,84062.0,84061.0,1.88492838]
[1742495493054,0.006,84062.0,84061.0,1.88492838]
[1742495493258,0.243919,84062.0,84061.0,1.63511038]
[1742495493460,0.249814,84062.0,84061.0,1.51553535]
[1742495493666,0.25234255,84062.0,84061.0,1.52053535]
[1742495494183,0.25234255,84062.0,84061.0,1.51853535]
[1742495494383,0.25234255,84062.0,84061.0,1.51553535]
[1742495494691,0.25234255,84062.0,84061.0,1.51753535]
[1742495495512,0.00252855,84062.0,84061.0,1.51753535]
[1742495496007,0.011895,84065.0,84061.0,1.51753535]
[1742495496008,0.011895,84065.0,84062.0,0.25245885]
[1742495496162,0.249811,84064.0,84062.0,0.01454085]
[1742495496361,0.25233684,84063.0,84062.0,0.01454085]
[1742495497193,0.25233684,84063.0,84062.0,0.01554085]
[1742495497399,0.25233684,84063.0,84062.0,0.01654085]
[1742495497618,0.25233684,84063.0,84062.0,0.01454085]
[1742495498002,0.25233684,84063.0,84062.0,0.01654085]
[1742495498830,0.25233684,84063.0,84062.0,0.002]
[1742495500557,0.55233684,84063.0,84062.0,0.002]
[1742495501538,0.56133044,84063.0,84062.0,0.002]
[1742495502926,0.56133044,84063.0,84062.0,0.001]
[1742495503340,0.549814,84062.0,84061.0,0.0009945]
[1742495503743,0.55233984,84062.0,84061.0,0.0009945]
[1742495504553,0.56233984,84062.0,84061.0,1e-08]
[1742495504778,0.549842,84053.0,84044.0,1.5]
[1742495505112,0.55236784,84053.0,84044.0,1.5]
[1742495505317,0.57102031,84053.0,84044.0,1.5]
[1742495506055,0.57111929,84053.0,84044.0,1.5]
[1742495506465,0.57611929,84053.0,84044.0,1.5]
[1742495509743,0.57611929,84053.0,84042.0,0.02424516]
[1742495510379,0.57611929,84053.0,84043.0,1.5]
[1742495510586,0.57611929,84053.0,84044.0,0.01454085]
[1742495510940,0.57611929,84053.0,84043.0,0.01454085]
[1742495511140,0.57611929,84053.0,84046.0,0.01454085]
[1742495511351,0.57611929,84053.0,84043.0,0.01454085]
[1742495511822,0.57611929,84053.0,84047.0,0.01454085]
[1742495512723,0.57311929,84053.0,84047.0,0.01454085]
[1742495512949,0.57211929,84053.0,84047.0,0.01454085]
[1742495513222,0.57311929,84053.0,84049.0,0.01454085]
[1742495515349,0.54256982,84053.0,84049.0,0.01454085]
[1742495515552,0.55446682,84053.0,84047.0,0.25249685]
[1742495515760,0.55446682,84053.0,84049.0,0.01454085]
[1742495515953,0.55446682,84053.0,84051.0,0.01471005]
[1742495516178,0.55346682,84053.0,84051.0,0.01471005]
[1742495516384,0.30362482,84053.0,84052.0,0.14618228]
[1742495516585,0.30262482,84053.0,84052.0,1.87223228]
[1742495516718,0.30009898,84053.0,84052.0,1.87223228]
[1742495516922,0.3025813,84053.0,84052.0,1.87223228]
[1742495517159,0.30009898,84053.0,84052.0,1.88412928]
[1742495517362,0.3025813,84053.0,84052.0,1.88412928]
[1742495517543,0.3025813,84053.0,84052.0,1.63428528]
[1742495517730,0.3025813,84053.0,84052.0,1.87223228]
[1742495518724,0.3025813,84053.0,84052.0,1.63428528]
[1742495519177,0.3025813,84053.0,84052.0,1.87223228]
[1742495520185,0.3025813,84053.0,84052.0,1.88412928]
[1742495520392,0.0025813,84053.0,84052.0,1.88412928]
[1742495520529,9.898e-05,84053.0,84052.0,1.88412928]
[1742495521826,9.898e-05,84053.0,84052.0,1.63428528]
[1742495522502,0.23804398,84053.0,84052.0,1.63428528]
[1742495522696,0.23804398,84053.0,84052.0,1.63628528]
[1742495522929,0.25243571,84053.0,84052.0,1.51671025]
[1742495523154,0.25243571,84053.0,84052.0,1.51471025]
[1742495523382,0.25243571,84053.0,84052.0,1.51671025]
[1742495523617,0.25243571,84053.0,84052.0,1.51871025]
[1742495524072,0.25243571,84053.0,84052.0,1.51671025]
[1742495524538,0.24053871,84053.0,84052.0,1.63728528]
[1742495524758,0.25243571,84053.0,84052.0,1.63728528]
[1742495526095,0.25243571,84053.0,84052.0,0.13728528]
[1742495526539,0.25243571,84053.0,84052.0,1.63728528]
[1742495528752,0.25243571,84053.0,84052.0,1.88712928]
[1742495528753,0.00259371,84053.0,84052.0,1.88712928]
[1742495529131,9.898e-05,84053.0,84052.0,1.88712928]
[1742495529563,0.00259371,84053.0,84052.0,1.88712928]
[1742495529946,9.898e-05,84053.0,84052.0,1.88712928]
[1742495532741,0.00259371,84053.0,84052.0,1.88712928]
[1742495532899,9.898e-05,84053.0,84052.0,1.88712928]
[1742495533100,9.898e-05,84053.0,84052.0,1.63728528]
[1742495533298,9.898e-05,84053.0,84052.0,0.0031694]
[1742495533299,0.25243571,84053.0,84052.0,0.0031694]
[1742495534071,0.00259371,84053.0,84052.0,0.01771025]
[1742495534322,0.00259371,84053.0,84052.0,0.48712928]
[1742495534777,0.00259371,84053.0,84052.0,2.06732928]
[1742495534931,9.898e-05,84053.0,84052.0,2.06732928]
[1742495537654,9.898e-05,84053.0,84052.0,2.06532928]
[1742495537975,9.898e-05,84053.0,84052.0,2.06832928]
[1742495538754,9.898e-05,84053.0,84052.0,2.06732928]
[1742495539178,9.898e-05,84053.0,84052.0,2.15408528]
[1742495539383,9.898e-05,84053.0,84052.0,2.40392928]
[1742495539750,9.898e-05,84053.0,84052.0,2.53840928]
[1742495541124,9.898e-05,84053.0,84052.0,2.66450928]
[1742495541338,9.8e-07,84053.0,84052.0,2.66950928]
[1742495542274,9.8e-07,84053.0,84052.0,2.66650928]
[1742495542501,9.8e-07,84053.0,84052.0,2.66350928]
[1742495542707,0.00100098,84053.0,84052.0,2.66850928]
[1742495543545,9.8e-07,84053.0,84052.0,2.66850928]
[1742495543771,3.8e-07,84061.0,84060.0,0.254821]
[1742495543986,4.203e-05,84061.0,84060.0,0.92933688]
[1742495544637,4.203e-05,84061.0,84060.0,2.42933688]
[1742495545780,4.203e-05,84061.0,84060.0,2.43533688]
[1742495545997,4.3e-07,84063.0,84062.0,0.782614]
[1742495546199,4.3e-07,84063.0,84062.0,1.81235227]
[1742495546782,4.3e-07,84063.0,84062.0,3.21235227]
[1742495546983,4.3e-07,84063.0,84062.0,3.31235227]
[1742495547360,4.3e-07,84063.0,84062.0,3.32141865]
[1742495547570,4.3e-07,84063.0,84062.0,3.32741865]
[1742495548170,4.3e-07,84063.0,84062.0,3.33341865]
[1742495548529,4.3e-07,84063.0,84062.0,3.32741865]
[1742495548737,4.3e-07,84063.0,84062.0,3.35841865]
[1742495549266,4.3e-07,84063.0,84062.0,3.35241865]
[1742495549419,4.3e-07,84063.0,84062.0,3.35841865]
[1742495549857,4.3e-07,84063.0,84062.0,3.35241865]
[1742495550211,0.0003382,84080.0,84079.0,0.36930485]
[1742495550406,0.00039766,84080.0,84079.0,1.49912227]
[1742495551029,0.00039766,84080.0,84079.0,1.5110201]
[1742495551256,0.00039766,84080.0,84079.0,1.8110201]
[1742495551460,0.00039766,84080.0,84079.0,1.8060201]
[1742495551688,0.00039766,84080.0,84079.0,1.8120201]
[1742495551881,0.00039766,84080.0,84079.0,1.8170201]
[1742495552297,0.00039766,84080.0,84079.0,1.8230201]
[1742495552502,0.00039766,84080.0,84079.0,1.8180201]
[1742495552873,0.00039766,84080.0,84079.0,1.8230201]
[1742495553086,0.00039766,84080.0,84079.0,1.84127569]
[1742495553336,0.00039766,84080.0,84079.0,3.34627569]
[1742495554125,0.00039766,84080.0,84079.0,3.34127569]
[1742495554332,0.00039766,84080.0,84079.0,3.25827569]
[1742495554727,0.00039766,84080.0,84079.0,3.12383569]
[1742495554970,0.00039766,84080.0,84079.0,3.25823569]
[1742495555325,0.00039766,84080.0,84079.0,3.26323569]
[1742495555443,0.0003386,84091.0,84081.0,0.254758]
[1742495555444,6e-08,84082.0,84081.0,0.254758]
[1742495555652,6e-08,84082.0,84081.0,0.38887388]
[1742495555872,6e-08,84082.0,84081.0,0.80267388]
[1742495556084,6e-08,84082.0,84081.0,2.38587388]
[1742495556558,6e-08,84082.0,84081.0,2.39187388]
[1742495556939,6e-08,84082.0,84081.0,2.69787388]
[1742495557190,6e-08,84082.0,84081.0,2.72287388]
[1742495557567,0.0003386,84091.0,84090.0,0.82457285]
[1742495557568,6e-07,84091.0,84090.0,0.82457285]
[1742495557893,6e-07,84091.0,84090.0,1.81461027]
[1742495558301,6e-07,84091.0,84090.0,1.83961027]
[1742495559758,6e-07,84091.0,84090.0,1.84561027]
[1742495560179,6e-07,84091.0,84090.0,1.98001027]
[1742495560662,6e-07,84091.0,84090.0,1.81561027]
[1742495560870,6e-07,84091.0,84090.0,1.65501027]
[1742495561067,6e-07,84091.0,84090.0,1.65601027]
[1742495561282,6e-07,84091.0,84090.0,1.66101027]
[1742495561494,6e-07,84091.0,84090.0,1.64901027]
[1742495561961,6e-07,84091.0,84090.0,1.66101027]
[1742495562208,6e-07,84091.0,84090.0,1.65501027]
[1742495562443,6e-07,84091.0,84090.0,1.67007415]
[1742495562643,6e-07,84091.0,84090.0,2.08387409]
[1742495563278,6e-07,84091.0,84090.0,3.57787409]
[1742495563478,6e-07,84091.0,84090.0,3.58387409]
[1742495564824,6e-07,84091.0,84090.0,3.57887409]
[1742495565053,6e-07,84091.0,84090.0,3.44447409]
[1742495565196,6e-07,84091.0,84090.0,3.44857409]
[1742495567904,6e-07,84091.0,84090.0,3.45357409]
[1742495569691,6e-07,84091.0,84090.0,3.44857409]
[1742495571011,6e-07,84091.0,84090.0,3.43951021]
[1742495572146,6e-07,84091.0,84090.0,3.53134166]
[1742495573924,6e-07,84091.0,84090.0,3.83134166]
[1742495574139,0.0003384,84115.0,84114.0,0.34966]
[1742495574366,0.00075518,84115.0,84114.0,1.59773582]
[1742495574958,0.00075518,84115.0,84114.0,3.12145797]
[1742495575596,0.00075518,84115.0,84114.0,3.12645797]
[1742495576985,0.00075518,84115.0,84114.0,3.13145797]
[1742495577767,0.00075518,84115.0,84114.0,3.14332914]
[1742495579715,0.00075518,84115.0,84114.0,3.13145797]
[1742495588194,0.00075518,84115.0,84114.0,2.99709797]
[1742495588407,0.00075518,84115.0,84114.0,3.13145797]
[1742495597883,1.8e-07,84115.0,84114.0,3.20725797]
[1742495598017,1.8e-07,84115.0,84114.0,3.21225797]
[1742495598415,5.8e-07,84122.0,84121.0,0.249639]
[1742495598624,4.9e-07,84122.0,84121.0,0.71825727]
[1742495599045,4.9e-07,84122.0,84121.0,2.21825727]
[1742495600169,4.9e-07,84122.0,84121.0,2.29835727]
[1742495600372,4.9e-07,84122.0,84121.0,2.35275727]
[1742495600964,4.9e-07,84122.0,84121.0,2.35875727]
[1742495602986,0.07751569,84149.0,84148.0,0.349559]
[1742495603191,0.07764055,84149.0,84148.0,0.61799488]
[1742495604419,0.32719655,84149.0,84148.0,0.36843588]
[1742495604647,0.32719655,84149.0,84148.0,0.35389503]
[1742495604848,0.32719655,84149.0,84148.0,0.36843588]
[1742495605165,0.32719655,84149.0,84148.0,1.86843588]
[1742495605489,0.33027574,84149.0,84148.0,1.86843588]
[1742495605650,0.33027574,84149.0,84148.0,1.87243588]
[1742495605849,0.33027574,84149.0,84148.0,1.89639723]
[1742495606071,0.37847574,84149.0,84148.0,1.62596135]
[1742495606408,0.37847574,84149.0,84148.0,1.5]
[1742495606572,0.37847574,84149.0,84148.0,1.501]
[1742495606978,0.37847574,84149.0,84148.0,1.5]
[1742495607379,0.37847574,84149.0,84148.0,1.501]
[1742495607580,0.37847574,84149.0,84148.0,1.5]
[1742495608764,0.249586,84139.0,84138.0,0.11454085]
[1742495608958,0.249586,84139.0,84137.0,0.13432]
[1742495608959,0.249589,84138.0,84137.0,0.14886085]
[1742495609161,0.330489,84138.0,84137.0,0.01454085]
[1742495609422,0.330489,84138.0,84137.0,1.5386522]
[1742495609423,0.33356819,84138.0,84137.0,1.5386522]
[1742495609638,0.63356819,84138.0,84137.0,1.5]
[1742495610075,0.67886819,84138.0,84137.0,1.5]
[1742495610749,0.249624,84126.0,84125.0,0.1]
[1742495610900,0.25270319,84126.0,84125.0,0.1]
[1742495611111,0.25270319,84126.0,84125.0,0.12324879]
[1742495612030,0.25270319,84126.0,84125.0,0.12424879]
[1742495612843,0.63160319,84126.0,84125.0,0.001]
[1742495613062,0.68104119,84126.0,84125.0,0.002]
[1742495613902,0.66915519,84126.0,84125.0,0.13511588]
[1742495614132,0.68104119,84126.0,84125.0,0.13511588]
[1742495614342,0.43141719,84126.0,84125.0,0.13511588]
[1742495614533,0.66915519,84126.0,84125.0,1.63511588]
[1742495614736,0.68104119,84126.0,84125.0,1.63411588]
[1742495615340,0.43141719,84126.0,84125.0,1.87185688]
[1742495615545,0.00341719,84126.0,84125.0,1.97185688]
[1742495615763,0.00341719,84126.0,84125.0,1.98374388]
[1742495616061,0.000338,84126.0,84125.0,1.98374388]
[1742495617428,0.000338,84126.0,84125.0,1.73611588]
[1742495617628,0.249962,84126.0,84125.0,1.73611588]
[1742495617907,0.25300909,84126.0,84125.0,1.73611588]
[1742495618075,0.25300909,84126.0,84125.0,1.73811588]
[1742495618753,0.25300909,84126.0,84125.0,1.73411588]
[1742495618953,0.29840909,84126.0,84125.0,1.5]
[1742495619127,0.37760909,84126.0,84125.0,1.501]
[1742495619569,0.37760909,84126.0,84125.0,1.5]
[1742495620548,0.249652,84117.0,84116.0,0.13432]
[1742495620753,0.249657,84115.0,84114.0,0.000169]
[1742495621131,0.33030409,84115.0,84114.0,0.000169]
[1742495621710,0.63030409,84115.0,84114.0,0.000169]
[1742495622327,0.63030409,84115.0,84114.0,0.001169]
[1742495623318,0.63030409,84115.0,84114.0,0.002169]
[1742495623753,0.63030409,84115.0,84114.0,0.001169]
[1742495624510,0.63030409,84115.0,84114.0,0.000169]
[1742495627754,0.64232348,84115.0,84114.0,0.000169]
[1742495627954,0.69172348,84115.0,84114.0,0.000169]
[1742495628160,0.56472348,84115.0,84114.0,0.000169]
[1742495628586,0.26472348,84115.0,84114.0,0.000169]
[1742495629487,0.27147276,84115.0,84114.0,0.000169]
[1742495629952,0.03370376,84115.0,84114.0,0.000169]
[1742495630184,0.03370376,84115.0,84114.0,0.25248185]
[1742495630421,0.03370376,84115.0,84114.0,0.38394488]
[1742495630630,0.00304709,84115.0,84114.0,0.38394488]
[1742495630779,0.000338,84126.0,84123.0,0.237746]
[1742495631015,0.000338,84126.0,84125.0,0.01454085]
[1742495631016,0.01206432,84126.0,84125.0,0.01454085]
[1742495631197,0.25264732,84125.0,84124.0,0.01454085]
[1742495631400,0.249628,84125.0,84124.0,0.01454085]
[1742495631812,0.25264732,84125.0,84124.0,0.01454085]
[1742495633258,0.25264732,84125.0,84124.0,1.51454085]
[1742495635900,0.25264732,84125.0,84124.0,1.5]
[1742495636106,0.237764,84117.0,84115.0,0.01454085]
[1742495636264,0.237766,84116.0,84115.0,0.13411588]
[1742495636465,0.011888,84118.0,84115.0,1.63411588]
[1742495636766,0.249654,84116.0,84115.0,1.63411588]
[1742495637171,0.25268313,84116.0,84115.0,1.63411588]
[1742495637388,0.25268313,84116.0,84115.0,0.13511588]
[1742495637595,0.25268313,84116.0,84115.0,0.001]
[1742495637964,0.32948313,84116.0,84115.0,0.001]
[1742495638795,0.34812086,84116.0,84115.0,0.001]
[1742495639757,0.249657,84115.0,84114.0,0.000169]
[1742495640338,0.25268613,84115.0,84114.0,0.000169]
[1742495642769,0.55268613,84115.0,84114.0,0.000169]
[1742495643185,0.00302913,84115.0,84114.0,0.38394488]
[1742495643585,0.011887,84124.0,84118.0,0.01454085]
[1742495643790,0.237758,84119.0,84118.0,0.13411588]
[1742495644192,0.237758,84119.0,84118.0,1.63411588]
[1742495644403,0.00302913,84119.0,84118.0,1.87187688]
[1742495644599,0.249636,84123.0,84120.0,0.237755]
[1742495644841,0.237737,84127.0,84121.0,0.11957503]
[1742495645055,0.011886,84131.0,84125.0,0.01454085]
[1742495645056,0.24961,84131.0,84125.0,0.01454085]
[1742495645204,0.24961,84131.0,84125.0,0.37185688]
[1742495645544,0.011886,84129.0,84125.0,0.13411588]
[1742495645752,0.24981406,84126.0,84125.0,0.13411588]
[1742495645949,0.01207606,84126.0,84125.0,0.13411588]
[1742495646158,0.24981406,84126.0,84125.0,0.13411588]
[1742495647500,0.01207606,84126.0,84125.0,0.37185688]
[1742495648379,0.24981406,84126.0,84125.0,0.13411588]
[1742495648786,0.01207606,84126.0,84125.0,0.13411588]
[1742495649010,0.01207606,84126.0,84125.0,0.37185688]
[1742495649180,0.000338,84126.0,84125.0,0.38374388]
[1742495650388,0.000338,84126.0,84125.0,0.38574388]
[1742495650602,0.000338,84126.0,84125.0,0.38774388]
[1742495653372,0.000338,84126.0,84125.0,1.88774388]
[1742495653595,0.000338,84126.0,84125.0,1.63811588]
[1742495653798,0.000338,84126.0,84125.0,2.02210388]
[1742495654666,0.238076,84126.0,84125.0,1.504]
[1742495655112,0.2411277,84126.0,84125.0,1.504]
[1742495655820,0.2530137,84126.0,84125.0,1.504]
[1742495656236,0.2530137,84126.0,84125.0,1.502]
[1742495656437,0.2530137,84126.0,84125.0,1.5]
[1742495656751,0.2530137,84126.0,84125.0,1.502]
[1742495656959,0.2526757,84126.0,84125.0,1.502]
[1742495660561,0.0030517,84126.0,84125.0,1.502]
[1742495660765,0.0030517,84126.0,84125.0,1.87385688]
[1742495660920,0.237735,84128.0,84126.0,0.01454085]
[1742495661141,0.237735,84128.0,84127.0,0.13411588]
[1742495661668,0.249621,84128.0,84127.0,0.13411588]
[1742495662075,0.237735,84128.0,84127.0,0.13411588]
[1742495662232,0.249621,84128.0,84127.0,0.13411588]
[1742495662997,0.249621,84128.0,84127.0,0.13611588]
[1742495663255,0.237735,84128.0,84127.0,1.63611588]
[1742495665612,0.24077693,84128.0,84127.0,1.63611588]
[1742495666808,0.00304193,84128.0,84127.0,1.63611588]
[1742495667216,0.237729,84130.0,84128.0,0.01454085]
[1742495667415,0.249615,84130.0,84129.0,0.13411588]
[1742495670233,0.249615,84130.0,84129.0,1.63411588]
[1742495671175,0.249615,84130.0,84129.0,1.5]
[1742495672992,0.249953,84130.0,84129.0,1.5]
[1742495673583,0.249953,84130.0,84129.0,1.51454085]
[1742495673785,0.000338,84130.0,84129.0,1.98373188]
[1742495674614,0.000338,84130.0,84129.0,2.11805188]
[1742495677067,0.000338,84130.0,84129.0,2.11905188]
[1742495677271,0.000338,84130.0,84129.0,2.11805188]
[1742495677675,0.000338,84130.0,84129.0,2.53285182]
[1742495678661,0.000338,84130.0,84129.0,2.53385182]
[1742495680152,0.000338,84130.0,84129.0,2.53285182]
[1742495680351,0.000338,84130.0,84129.0,2.53185182]
[1742495680574,0.000338,84130.0,84129.0,2.53985182]
[1742495682817,0.000338,84130.0,84129.0,2.40553182]
[1742495683195,0.000338,84130.0,84129.0,2.53985182]
[1742495683400,0.000338,84130.0,84129.0,2.52531097]
[1742495683801,0.000338,84130.0,84129.0,2.51342497]
[1742495684003,0.0122752,84130.0,84129.0,2.53985182]
[1742495684303,0.000338,84130.0,84129.0,2.53985182]
[1742495685078,0.000338,84130.0,84129.0,2.53585182]
[1742495685404,0.000338,84130.0,84129.0,2.53185182]
[1742495685761,0.000338,84130.0,84129.0,2.53485182]
[1742495686188,0.000338,84130.0,84129.0,2.40053182]
[1742495686391,0.000338,84130.0,84129.0,2.53485182]
[1742495686590,0.000338,84130.0,84129.0,2.53785182]
[1742495689591,0.249951,84130.0,84129.0,2.28823582]
[1742495690015,0.238065,84130.0,84129.0,2.15391582]
[1742495690412,0.24112586,84130.0,84129.0,2.15391582]
[1742495690907,0.25301186,84130.0,84129.0,1.52054085]
[1742495692415,0.25301186,84130.0,84129.0,1.51754085]
[1742495692768,0.25301186,84130.0,84129.0,1.51454085]
[1742495692967,0.00339886,84130.0,84129.0,1.51554085]
[1742495693414,0.24112586,84130.0,84129.0,1.51554085]
[1742495693797,0.25301186,84130.0,84129.0,1.51554085]
[1742495694187,0.25301186,84130.0,84129.0,1.51754085]
[1742495694793,0.24112586,84130.0,84129.0,1.51754085]
[1742495695174,0.25301186,84130.0,84129.0,1.51754085]
[1742495695387,0.00339886,84130.0,84129.0,1.97484588]
[1742495695588,0.000338,84130.0,84129.0,1.97484588]
[1742495696007,0.000338,84130.0,84129.0,1.98673188]
[1742495696335,0.00339886,84130.0,84129.0,1.98673188]
[1742495696893,0.000338,84130.0,84129.0,2.12105188]
[1742495701187,0.000338,84130.0,84129.0,2.58265182]
[1742495701808,0.000338,84130.0,84129.0,2.66435182]
[1742495702010,0.000338,84130.0,84129.0,2.66135182]
[1742495702496,0.000338,84130.0,84129.0,2.69399788]
[1742495702837,1e-06,84130.0,84129.0,2.70576]
[1742495703010,1e-06,84130.0,84129.0,2.70776]
[1742495703157,1e-06,84130.0,84129.0,2.71376]
[1742495703360,1e-06,84130.0,84129.0,3.11376]
[1742495703574,1e-06,84130.0,84129.0,3.09293705]
[1742495703776,0.000338,84149.0,84148.0,0.349559]
[1742495703999,0.00046286,84149.0,84148.0,1.72423382]
[1742495704448,0.00046286,84149.0,84148.0,3.23618376]
[1742495705402,0.00046286,84149.0,84148.0,3.23918376]
[1742495706418,0.00046286,84149.0,84148.0,3.24218376]
[1742495706869,0.00046286,84149.0,84148.0,3.25999516]
[1742495707075,0.00046286,84149.0,84148.0,3.25699516]
[1742495707276,0.00046286,84149.0,84148.0,3.28401686]
[1742495707659,0.00046286,84149.0,84148.0,3.28901686]
[1742495708737,0.00046286,84149.0,84148.0,3.28301686]
[1742495708897,0.00046286,84149.0,84148.0,3.28401686]
[1742495709094,0.00046286,84149.0,84148.0,3.29001686]
[1742495709881,0.00046286,84149.0,84148.0,3.27220546]
[1742495712904,0.00576789,84171.0,84170.0,0.349494]
[1742495713103,0.0004382,84176.0,84175.0,0.26402085]
[1742495713320,0.00049262,84176.0,84175.0,0.38359588]
[1742495713663,0.00049262,84176.0,84175.0,1.88359588]
[1742495715224,0.00049262,84176.0,84175.0,2.45007588]
[1742495715801,0.00049262,84176.0,84175.0,2.86387482]
[1742495716003,0.00049262,84176.0,84175.0,2.93897482]
[1742495716601,0.00049262,84176.0,84175.0,2.94397482]
[1742495717208,0.00049262,84176.0,84175.0,2.93897482]
[1742495717410,0.00049262,84176.0,84175.0,2.94897482]
[1742495717610,0.00049262,84176.0,84175.0,2.94497482]
[1742495717979,0.00049262,84176.0,84175.0,2.95097482]
[1742495719039,0.00049262,84176.0,84175.0,3.03328942]
[1742495720441,0.00049262,84176.0,84175.0,2.89904942]
[1742495720606,0.00049262,84176.0,84175.0,3.03324942]
[1742495725039,6.2e-07,84176.0,84175.0,3.03324942]
[1742495725176,6.2e-07,84176.0,84175.0,3.10984942]
[1742495725381,6.2e-07,84176.0,84175.0,3.15774942]
[1742495726379,6.2e-07,84176.0,84175.0,3.15174942]
[1742495726781,6.2e-07,84176.0,84175.0,3.15774942]
[1742495727546,6.2e-07,84176.0,84175.0,3.16945393]
[1742495727686,6.2e-07,84176.0,84175.0,3.17545393]
[1742495729289,0.0001,84189.0,84188.0,0.349441]
[1742495729491,0.0001,84189.0,84188.0,1.1093552]
[1742495730029,0.0001,84189.0,84188.0,2.6093552]
[1742495730847,0.0001,84189.0,84188.0,2.6153552]
[1742495731199,0.0001,84189.0,84188.0,2.63884004]
[1742495731424,0.0001,84189.0,84188.0,2.66254455]
[1742495733310,0.001,84199.0,84198.0,0.349411]
[1742495733531,0.001,84199.0,84198.0,0.48352688]
[1742495733915,0.001,84199.0,84198.0,1.98352688]
[1742495734296,0.001,84199.0,84198.0,2.00123139]
[1742495734489,0.001,84199.0,84198.0,2.00523139]
[1742495734896,0.001,84199.0,84198.0,2.00123139]
[1742495735123,0.001,84199.0,84198.0,2.00623139]
[1742495735695,0.001,84199.0,84198.0,2.01793521]
[1742495735902,0.0010416,84199.0,84198.0,2.01793521]
[1742495737054,0.0010416,84199.0,84198.0,2.00623139]
[1742495737887,0.0010416,84199.0,84198.0,2.01123139]
[1742495738475,0.0010416,84199.0,84198.0,2.42502971]
[1742495741326,0.0010416,84199.0,84198.0,2.99018971]
[1742495742036,0.0010416,84199.0,84198.0,2.98518971]
[1742495742459,0.0010416,84199.0,84198.0,2.99118971]
[1742495742621,0.0010416,84199.0,84198.0,3.07278971]
[1742495743028,0.000338,84215.0,84198.0,3.07278971]
[1742495743029,0.01180197,84224.0,84223.0,0.349337]
[1742495743244,0.0482416,84225.0,84224.0,0.011873]
[1742495743453,0.0482416,84225.0,84224.0,0.38345088]
[1742495743869,0.05332919,84225.0,84224.0,0.38345088]
[1742495744076,0.0651736,84225.0,84224.0,0.38345088]
[1742495744767,0.0651736,84225.0,84224.0,0.27027588]
[1742495745160,0.0651736,84225.0,84224.0,0.2938682]
[1742495745398,0.06008601,84225.0,84224.0,0.5323302]
[1742495745579,0.0651736,84225.0,84224.0,0.5323302]
[1742495745980,0.0651736,84225.0,84224.0,0.5442032]
[1742495746186,0.1426736,84225.0,84224.0,0.5442032]
[1742495746611,0.1426736,84225.0,84224.0,0.01754085]
[1742495746612,0.3920046,84225.0,84224.0,0.01754085]
[1742495746810,0.3920046,84225.0,84224.0,0.003]
[1742495747413,0.6920046,84225.0,84224.0,0.003]
[1742495748259,0.6920046,84225.0,84205.0,0.13412]
[1742495748260,0.672787,84206.0,84205.0,0.13412]
[1742495748443,0.326008,84199.0,84193.0,0.23412]